fUSD/lending_fUSD_20250207
["ID","MTS","AMOUNT","RATE_DAILY","PERIOD"]
[352103440,1738949437942,-151.31,0.00011,2]
[352103441,1738949437955,-151.31,0.00011,2]
[352103442,1738949437965,-151.31,0.00011,2]
[352103443,1738949437975,-151.31,0.00011,2]
[352103444,1738949437985,-151.31,0.00011,2]
[352103445,1738949437995,-151.31,0.00011,2]
[352103446,1738949438005,-151.31,0.00011,2]
[352103447,1738949438015,-151.31,0.00011,2]
[352103448,1738949438025,-151.31,0.00011,2]
[352103449,1738949438035,-151.31,0.00011,2]
[352103450,1738949438045,-151.31,0.00011,2]
[352103451,1738949438055,-151.31,0.00011,2]
[352103452,1738949438064,-151.31,0.00011,2]
[352103453,1738949438074,-151.31,0.00011,2]
[352103454,1738949438084,-151.31,0.00011,2]
[352103455,1738949438094,-151.31,0.00011,2]
[352103456,1738949438104,-151.31,0.00011,2]
[352103457,1738949438114,-151.31,0.00011,2]
[352103458,1738949438123,-151.31,0.00011,2]
[352103459,1738949438133,-151.31,0.00011,2]
[352103460,1738949438143,-151.31,0.00011,2]
[352103461,1738949438153,-151.31,0.00011,2]
[352103462,1738949438163,-151.31,0.00011,2]
[352103463,1738949438172,-151.31,0.00011,2]
[352103464,1738949438182,-151.31,0.00011,2]
[352103465,1738949438192,-151.31,0.00011,2]
[352103466,1738949438207,-151.31,0.00011,2]
[352103467,1738949438217,-151.31,0.00011,2]
[352103468,1738949438227,-151.31,0.00011,2]
[352103469,1738949438238,-151.31,0.00011,2]
[352103470,1738949438248,-151.31,0.00011,2]
[352103471,1738949438261,-151.31,0.00011,2]
[352103472,1738949438271,-151.31,0.00011,2]
[352103473,1738949438281,-151.31,0.00011,2]
[352103474,1738949438291,-151.31,0.00011,2]
[352103476,1738949438300,-151.31,0.00011,2]
[352103478,1738949438310,-151.31,0.00011,2]
[352103480,1738949438319,-151.31,0.00011,2]
[352103482,1738949438329,-151.31,0.00011,2]
[352103484,1738949438340,-151.31,0.00011,2]
[352103486,1738949438350,-151.31,0.00011,2]
[352103487,1738949438360,-151.31,0.00011,2]
[352103489,1738949438370,-151.31,0.00011,2]
[352103491,1738949438379,-151.31,0.00011,2]
[352103493,1738949438389,-480.75,0.00011397,2]
[352103495,1738949438399,-8443.32,0.00011558,2]
[352103497,1738949438408,-150.0,0.00011671,2]
[352103499,1738949438417,-963.59798674,0.00011679,3]
[352103501,1738949438427,-1005.66470408,0.00011679,2]
[352103503,1738949438436,-2292767.57996099,0.00011679,3]
[352103505,1738949438445,-214530.82395337,0.0001168,2]
[352103507,1738949438459,-2200.0,0.0001178,2]
[352103508,1738949438468,-191.93871814,0.000119,2]
[352103509,1738949438478,-62154.32866354,0.00011999,2]
[352103510,1738949438487,-357.09525468,0.00012067,2]
[352103512,1738949438497,-1000.0,0.00012188,2]
[352103514,1738949438507,-294.45367239,0.000125,2]
[352103517,1738949438516,-20000.0,0.000125,2]
[352103520,1738949438525,-251.77,0.00012877,2]
[352103523,1738949438534,-3500.0,0.00013,2]
[352103525,1738949438544,-4237.81715506,0.00013,2]
[352103527,1738949438553,-20547.58059116,0.00013,15]
[352103529,1738949438562,-15355.63049313,0.00013,15]
[352103531,1738949438571,-438.07442119,0.00013,2]
[352103533,1738949438581,-5117.1261848,0.0001305,2]
[352103535,1738949438591,-1080.13863817,0.0001315,2]
[352103537,1738949438600,-6517.20068814,0.0001315,2]
[352103539,1738949438609,-2200.0,0.0001315,2]
[352103541,1738949438619,-799.37,0.00013479,2]
[352103543,1738949438628,-1000.0,0.000135,2]
[352103545,1738949438638,-154.88534684,0.00013699,30]
[352103547,1738949438648,-100628.56,0.00013699,2]
[352103549,1738949438657,-152.21070758,0.00013699,2]
[352103551,1738949438667,-161.4109849,0.00013699,2]
[352103553,1738949438676,-517.33173592,0.00013699,2]
[352103555,1738949438685,-501.4248146,0.00013699,2]
[352103557,1738949438694,-207.06698277,0.00013699,2]
[352103559,1738949438706,-500.0,0.00013699,2]
[352103561,1738949438715,-500.0,0.00013699,2]
[352103563,1738949438724,-500.0,0.00013699,2]
[352103565,1738949438733,-500.0,0.00013699,2]
[352103567,1738949438742,-303.50965703,0.00013699,2]
[352103569,1738949438752,-6581.82,0.000137,2]
[352103571,1738949438761,-6581.82,0.000137,2]
[352103573,1738949438770,-110043.45494467,0.00014,2]
[352103575,1738949438780,-32329.05459852,0.00014,2]
[352103577,1738949438789,-3967.80062157,0.00014,2]
[352103579,1738949438798,-900.0,0.00014,15]
[352103581,1738949438807,-3189.90319976,0.00014179,2]
[352103583,1738949438816,-357.09525468,0.00014233,2]
[352103585,1738949438825,-9864.40994736,0.0001439,2]
[352103587,1738949438834,-2200.0,0.0001452,2]
[352103589,1738949438843,-10032.73,0.00014575,2]
[352103591,1738949438852,-9053.73465627,0.00014664,2]
[352103593,1738949438861,-5000.0,0.00014664,2]
[352103595,1738949438870,-5000.0,0.00014664,2]
[352103597,1738949438879,-5000.0,0.00014664,2]
[352103599,1738949438888,-5000.0,0.00014664,2]
[352103601,1738949438898,-23900.0,0.00014813,2]
[352103603,1738949438908,-500.0,0.00014824,2]
[352103605,1738949438918,-7877.31822313,0.000149,2]
[352103607,1738949438927,-494.78,0.00014954,2]
[352103609,1738949438936,-4521.40785457,0.00015,10]
[352103611,1738949438945,-1959.92041639,0.00015,2]
[352103613,1738949438955,-10000.0,0.00015,10]
[352103615,1738949438964,-5288.07265833,0.00015,14]
[352103617,1738949438973,-18141.53653927,0.00015,2]
[352103619,1738949438982,-4913.40328858,0.00015,2]
[352103621,1738949438991,-24649.60011446,0.00015,2]
[352103623,1738949439000,-814.94140158,0.00015,2]
[352103625,1738949439010,-1017.90229007,0.00015,30]
[352103627,1738949439020,-900.0,0.00015,16]
[352103629,1738949439029,-1000.0,0.00015051,2]
[352103631,1738949439039,-297.54123321,0.000151,2]
[352103633,1738949439048,-8102.67,0.00015104,2]
[352103635,1738949439058,-1225.61389192,0.00015146,15]
[352103637,1738949439068,-537.26,0.00015152,2]
[352103639,1738949439078,-3409.0,0.000152,3]
[352103641,1738949439088,-2000.0,0.0001524,2]
[352103643,1738949439097,-168.35,0.00015282,2]
[352103645,1738949439107,-1517.64,0.000153,2]
[352103647,1738949439116,-231.33,0.00015394,2]
[352103649,1738949439126,-485.75330247,0.000154,2]
[352103651,1738949439135,-245.19,0.000154,2]
[352103668,1738949439301,-379.14,0.0001559,2]
[352103670,1738949439312,-799.37,0.00015743,2]
[352103672,1738949439323,-2200.0,0.0001589,2]
[352103675,1738949439333,-500.0,0.00016164,2]
[352103677,1738949439342,-500.0,0.00016164,2]
[352103679,1738949439352,-263.3656116,0.00016169,2]
[352103681,1738949439361,-431.53194145,0.00016248,2]
[352103683,1738949439370,-165.78765134,0.00016269,2]
[352103685,1738949439379,-300.0,0.00016337,2]
[352103687,1738949439388,-300.0,0.00016344,2]
[352103689,1738949439397,-161.62456858,0.00016345,2]
[352103691,1738949439408,-300.0,0.00016351,2]
[352103693,1738949439417,-150.0,0.00016356,2]
[352103695,1738949439426,-6803.98601858,0.00016365,2]
[352103697,1738949439435,-316.06270134,0.00016373,2]
[352103699,1738949439444,-1080.13863817,0.000164,2]
[352103701,1738949439456,-357.09525468,0.000164,2]
[352103703,1738949439465,-6517.20068814,0.000164,2]
[352103706,1738949439475,-305695.28955048,0.000164,4]
[352103709,1738949439484,-207.72485393,0.000164,2]
[352103711,1738949439493,-368.94,0.000164,2]
[352103714,1738949439502,-501.46241001,0.00016438,2]
[352103716,1738949439511,-500.0,0.00016438,2]
[352103718,1738949439520,-500.0,0.00016438,2]
[352103720,1738949439529,-500.0,0.00016438,2]
[352103722,1738949439538,-202.02378117,0.00016438,2]
[352103724,1738949439547,-500.0,0.00016438,2]
[352103726,1738949439557,-190.37123564,0.00016438,2]
[352103728,1738949439566,-500.0,0.00016438,2]
[352103730,1738949439575,-500.0,0.00016438,2]
[352103732,1738949439584,-500.0,0.00016438,2]
[352103734,1738949439593,-500.0,0.00016438,2]
[352103736,1738949439602,-221.0456427,0.00016438,2]
[352103738,1738949439611,-500.0,0.00016438,2]
[352103740,1738949439620,-502.23520174,0.00016438,2]
[352103742,1738949439629,-500.0,0.00016438,2]
[352103744,1738949439638,-500.0,0.00016438,2]
[352103746,1738949439648,-500.0,0.00016438,2]
[352103748,1738949439657,-638.72155357,0.00016438,2]
[352103750,1738949439666,-154.25447722,0.00016438,2]
[352103752,1738949439675,-336.9628116,0.00016438,2]
[352103754,1738949439684,-500.0,0.00016438,2]
[352103756,1738949439694,-500.0,0.00016438,2]
[352103758,1738949439705,-500.0,0.00016438,2]
[352103760,1738949439714,-505.0046534,0.00016438,2]
[352103762,1738949439723,-500.0,0.00016438,2]
[352103764,1738949439732,-500.0,0.00016438,2]
[352103766,1738949439742,-500.0,0.00016438,2]
[352103768,1738949439751,-500.0,0.00016438,2]
[352103770,1738949439760,-500.0,0.00016438,2]
[352103772,1738949439770,-502.59769097,0.00016438,2]
[352103774,1738949439779,-500.0,0.00016438,2]
[352103776,1738949439788,-279.84463679,0.00016438,2]
[352103778,1738949439797,-500.0,0.00016438,2]
[352103780,1738949439807,-500.0,0.00016438,2]
[352103782,1738949439817,-500.0,0.00016438,2]
[352103784,1738949439826,-500.0,0.00016438,2]
[352103786,1738949439835,-500.0,0.00016438,2]
[352103788,1738949439844,-500.0,0.00016438,2]
[352103790,1738949439853,-1136.775983,0.00016438,2]
[352103792,1738949439862,-500.0,0.00016438,2]
[352103794,1738949439872,-160.439542,0.00016438,2]
[352103796,1738949439881,-155.51952,0.00016438,2]
[352103798,1738949439890,-500.0,0.00016438,2]
[352103800,1738949439898,-500.0,0.00016438,2]
[352103802,1738949439908,-500.0,0.00016438,2]
[352103804,1738949439917,-500.0,0.00016438,2]
[352103806,1738949439926,-500.0,0.00016438,2]
[352103807,1738949439935,-447.88207307,0.00016438,2]
[352103808,1738949439943,-500.0,0.00016438,2]
[352103809,1738949439954,-500.0,0.00016438,2]
[352103810,1738949439963,-500.0,0.00016438,2]
[352103811,1738949439972,-1210.27804,0.00016438,2]
[352103812,1738949439981,-500.0,0.00016438,2]
[352103813,1738949439990,-500.0,0.00016438,2]
[352103814,1738949439999,-500.0,0.00016438,2]
[352103815,1738949440008,-500.0,0.00016438,2]
[352103816,1738949440019,-327.89862818,0.00016438,2]
[352103817,1738949440028,-500.0,0.00016438,2]
[352103818,1738949440037,-500.0,0.00016438,2]
[352103819,1738949440046,-500.0,0.00016438,2]
[352103820,1738949440055,-500.0,0.00016438,2]
[352103821,1738949440064,-500.0,0.00016438,2]
[352103822,1738949440073,-500.0,0.00016438,2]
[352103823,1738949440082,-500.0,0.00016438,2]
[352103825,1738949440091,-500.0,0.00016438,2]
[352103827,1738949440100,-500.0,0.00016438,2]
[352103829,1738949440109,-500.0,0.00016438,2]
[352103831,1738949440118,-500.0,0.00016438,2]
[352103833,1738949440127,-500.0,0.00016438,2]
[352103835,1738949440136,-629.92058239,0.00016438,2]
[352103837,1738949440146,-500.0,0.00016438,2]
[352103839,1738949440155,-160.84126323,0.00016438,2]
[352103841,1738949440164,-500.0,0.00016438,2]
[352103843,1738949440174,-500.0,0.00016438,2]
[352103845,1738949440183,-500.0,0.00016438,2]
[352103847,1738949440192,-500.0,0.00016438,2]
[352103849,1738949440202,-496.65448199,0.00016438,2]
[352103851,1738949440214,-500.0,0.00016438,2]
[352103853,1738949440223,-500.0,0.00016438,2]
[352103855,1738949440233,-500.0,0.00016438,2]
[352103857,1738949440243,-500.0,0.00016438,2]
[352103859,1738949440253,-500.0,0.00016438,2]
[352103861,1738949440262,-500.0,0.00016438,2]
[352103863,1738949440271,-500.0,0.00016438,2]
[352103865,1738949440280,-500.0,0.00016438,2]
[352103867,1738949440290,-500.0,0.00016438,2]
[352103868,1738949440299,-500.0,0.00016438,2]
[352103871,1738949440308,-500.0,0.00016438,2]
[352103873,1738949440318,-500.0,0.00016438,2]
[352103875,1738949440327,-500.0,0.00016438,2]
[352103877,1738949440340,-500.0,0.00016438,2]
[352103879,1738949440350,-500.0,0.00016438,2]
[352103880,1738949440359,-500.0,0.00016438,2]
[352103882,1738949440368,-335.23122546,0.00016438,2]
[352103884,1738949440377,-500.0,0.00016438,2]
[352103886,1738949440387,-500.0,0.00016438,2]
[352103889,1738949440397,-502.24033792,0.00016438,2]
[352103891,1738949440407,-500.0,0.00016438,2]
[352103892,1738949440416,-500.0,0.00016438,2]
[352103894,1738949440426,-500.0,0.00016438,2]
[352103896,1738949440435,-500.0,0.00016438,2]
[352103899,1738949440445,-500.0,0.00016438,2]
[352103902,1738949440455,-500.0,0.00016438,2]
[352103905,1738949440464,-500.0,0.00016438,2]
[352103908,1738949440473,-500.0,0.00016438,2]
[352103911,1738949440483,-500.0,0.00016438,2]
[352103913,1738949440492,-500.0,0.00016438,2]
[352103915,1738949440501,-500.0,0.00016438,2]
[352103916,1738949440511,-500.0,0.00016438,2]
[352103919,1738949440521,-500.0,0.00016438,2]
[352103921,1738949440530,-500.0,0.00016438,2]
[352103923,1738949440539,-576.5,0.00016438,2]
[352103924,1738949440549,-500.0,0.00016438,2]
[352103926,1738949440558,-500.0,0.00016438,2]
[352103928,1738949440567,-517.64048827,0.00016438,2]
[352103930,1738949440576,-500.0,0.00016438,2]
[352103932,1738949440585,-500.0,0.00016438,2]
[352103935,1738949440595,-500.0,0.00016438,2]
[352103937,1738949440604,-500.0,0.00016438,2]
[352103938,1738949440613,-500.0,0.00016438,2]
[352103940,1738949440623,-451.64,0.00016438,2]
[352103942,1738949440632,-500.0,0.00016438,2]
[352103944,1738949440641,-233.11324315,0.00016438,2]
[352103946,1738949440651,-500.0,0.00016438,2]
[352103949,1738949440660,-169.77,0.00016438,2]
[352103951,1738949440670,-500.0,0.00016438,2]
[352103953,1738949440679,-500.0,0.00016438,2]
[352103955,1738949440688,-500.0,0.00016438,2]
[352103957,1738949440697,-500.0,0.00016438,2]
[352103959,1738949440708,-500.0,0.00016438,2]
[352103961,1738949440717,-500.0,0.00016438,2]
[352103963,1738949440726,-500.0,0.00016438,2]
[352103965,1738949440735,-500.0,0.00016438,2]
[352103967,1738949440744,-500.0,0.00016438,2]
[352103969,1738949440753,-500.0,0.00016438,2]
[352103970,1738949440762,-394.52532973,0.00016438,2]
[352103972,1738949440771,-281.69,0.00016438,2]
[352103974,1738949440780,-500.0,0.00016438,2]
[352103976,1738949440789,-500.0,0.00016438,2]
[352103978,1738949440798,-500.0,0.00016438,2]
[352103980,1738949440807,-244.03,0.00016438,2]
[352103982,1738949440817,-2324.32,0.00016438,60]
[352103984,1738949440827,-500.0,0.00016438,2]
[352103986,1738949440836,-500.66,0.00016438,2]
[352103988,1738949440845,-500.0,0.00016438,2]
[352103990,1738949440855,-500.0,0.00016438,2]
[352103992,1738949440863,-500.0,0.00016438,2]
[352103994,1738949440873,-500.0,0.00016438,2]
[352103996,1738949440882,-500.0,0.00016438,2]
[352103998,1738949440891,-1555.73,0.00016438,2]
[352104000,1738949440900,-546.6254434,0.00016438,2]
[352104002,1738949440910,-500.0,0.00016438,2]
[352104004,1738949440920,-380.40768665,0.00016438,2]
[352104006,1738949440930,-1111.33,0.00016438,2]
[352104008,1738949440939,-500.0,0.00016438,2]
[352104010,1738949440948,-500.0,0.00016438,2]
[352104012,1738949440959,-500.0,0.00016438,2]
[352104014,1738949440968,-818.4,0.00016438,2]
[352104016,1738949440977,-500.0,0.00016438,2]
[352104018,1738949440986,-576.61,0.00016438,2]
[352104020,1738949440995,-500.0,0.00016438,2]
[352104022,1738949441004,-1431.53,0.00016438,2]
[352104024,1738949441012,-500.0,0.00016438,2]
[352104026,1738949441021,-500.0,0.00016438,2]
[352104028,1738949441031,-500.0,0.00016438,2]
[352104030,1738949441040,-500.0,0.00016438,2]
[352104032,1738949441049,-500.0,0.00016438,2]
[352104034,1738949441058,-500.0,0.00016438,2]
[352104036,1738949441067,-500.0,0.00016438,2]
[352104038,1738949441076,-500.0,0.00016438,2]
[352104040,1738949441085,-1072.74,0.00016438,2]
[352104043,1738949441095,-636.38,0.00016438,2]
[352104044,1738949441104,-500.0,0.00016438,2]
[352104046,1738949441113,-1233.93,0.00016438,2]
[352104048,1738949441122,-500.0,0.00016438,2]
[352104050,1738949441131,-500.0,0.00016438,2]
[352104052,1738949441140,-500.0,0.00016438,2]
[352104054,1738949441150,-500.0,0.00016438,2]
[352104057,1738949441159,-500.0,0.00016438,2]
[352104058,1738949441168,-500.0,0.00016438,2]
[352104061,1738949441177,-500.0,0.00016438,2]
[352104063,1738949441187,-516.11543889,0.00016438,2]
[352104065,1738949441196,-500.0,0.00016438,2]
[352104067,1738949441207,-1241.0,0.00016438,2]
[352104068,1738949441216,-500.0,0.00016438,2]
[352104070,1738949441226,-500.0,0.00016438,2]
[352104073,1738949441235,-1805.11,0.00016438,2]
[352104075,1738949441246,-500.0,0.00016438,2]
[352104077,1738949441257,-500.0,0.00016438,2]
[352104079,1738949441267,-407.30793502,0.00016438,2]
[352104081,1738949441276,-729.78,0.00016438,2]
[352104083,1738949441285,-1046.36,0.00016438,2]
[352104085,1738949441294,-168.97,0.00016438,2]
[352104087,1738949441304,-518.49,0.00016438,2]
[352104089,1738949441313,-500.0,0.00016438,2]
[352104091,1738949441322,-500.0,0.00016438,2]
[352104093,1738949441333,-1420.61,0.00016438,2]
[352104094,1738949441342,-500.0,0.00016438,2]
[352104096,1738949441351,-500.0,0.00016438,2]
[352104098,1738949441360,-500.0,0.00016438,2]
[352104101,1738949441370,-500.0,0.00016438,2]
[352104102,1738949441380,-503.02576548,0.00016438,2]
[352104104,1738949441389,-1288.47,0.00016438,2]
[352104106,1738949441399,-500.0,0.00016438,2]
[352104108,1738949441408,-500.0,0.00016438,2]
[352104110,1738949441417,-500.0,0.00016438,2]
[352104112,1738949441428,-500.0,0.00016438,2]
[352104114,1738949441438,-500.0,0.00016438,2]
[352104116,1738949441448,-500.0,0.00016438,2]
[352104118,1738949441461,-283.29,0.00016438,2]
[352104120,1738949441471,-500.0,0.00016438,2]
[352104122,1738949441481,-500.0,0.00016438,2]
[352104124,1738949441490,-236.85,0.00016438,2]
[352104126,1738949441499,-500.0,0.00016438,2]
[352104128,1738949441508,-500.0,0.00016438,2]
[352104130,1738949441518,-500.0,0.00016438,2]
[352104132,1738949441527,-500.0,0.00016438,2]
[352104134,1738949441537,-500.0,0.00016438,2]
[352104136,1738949441548,-912.14,0.00016438,2]
[352104138,1738949441558,-500.0,0.00016438,2]
[352104140,1738949441568,-500.0,0.00016438,2]
[352104143,1738949441577,-500.0,0.00016438,2]
[352104144,1738949441587,-500.0,0.00016438,2]
[352104146,1738949441598,-500.0,0.00016438,2]
[352104148,1738949441608,-500.0,0.00016438,2]
[352104150,1738949441618,-500.0,0.00016438,2]
[352104152,1738949441628,-500.0,0.00016438,2]
[352104154,1738949441638,-500.0,0.00016438,2]
[352104156,1738949441648,-978.12,0.00016438,2]
[352104158,1738949441659,-500.0,0.00016438,2]
[352104161,1738949441668,-1459.76,0.00016438,2]
[352104163,1738949441678,-500.0,0.00016438,2]
[352104164,1738949441687,-500.0,0.00016438,2]
[352104166,1738949441697,-500.0,0.00016438,2]
[352104168,1738949441712,-500.0,0.00016438,2]
[352104170,1738949441723,-500.0,0.00016438,2]
[352104173,1738949441732,-1630.2,0.00016438,2]
[352104174,1738949441742,-894.96,0.00016438,2]
[352104177,1738949441751,-1606.98,0.00016438,2]
[352104179,1738949441761,-500.0,0.00016438,2]
[352104181,1738949441770,-500.0,0.00016438,2]
[352104183,1738949441780,-1787.55,0.00016438,2]
[352104185,1738949441789,-1353.24,0.00016438,2]
[352104186,1738949441798,-1060.45,0.00016438,2]
[352104188,1738949441808,-500.0,0.00016438,2]
[352104190,1738949441817,-500.0,0.00016438,2]
[352104192,1738949441827,-500.0,0.00016438,2]
[352104194,1738949441836,-500.0,0.00016438,2]
[352104197,1738949441845,-500.0,0.00016438,2]
[352104199,1738949441854,-500.0,0.00016438,2]
[352104201,1738949441864,-500.0,0.00016438,2]
[352104203,1738949441873,-1138.41,0.00016438,2]
[352104205,1738949441882,-500.0,0.00016438,2]
[352104207,1738949441892,-500.0,0.00016438,2]
[352104209,1738949441901,-820.58,0.00016438,2]
[352104211,1738949441910,-500.0,0.00016438,2]
[352104213,1738949441919,-500.0,0.00016438,2]
[352104215,1738949441928,-1485.18,0.00016438,2]
[352104216,1738949441937,-500.0,0.00016438,2]
[352104219,1738949441947,-500.0,0.00016438,2]
[352104220,1738949441959,-500.0,0.00016438,2]
[352104222,1738949441969,-211.74,0.00016438,2]
[352104225,1738949441979,-500.0,0.00016438,2]
[352104227,1738949441989,-500.0,0.00016438,2]
[352104229,1738949441998,-500.0,0.00016438,2]
[352104230,1738949442008,-500.0,0.00016438,2]
[352104233,1738949442017,-500.0,0.00016438,2]
[352104235,1738949442026,-1447.57,0.00016438,2]
[352104237,1738949442036,-500.0,0.00016438,2]
[352104239,1738949442045,-500.0,0.00016438,2]
[352104242,1738949442181,-500.0,0.00016438,2]
[352104243,1738949442191,-500.0,0.00016438,2]
[352104244,1738949442200,-500.0,0.00016438,2]
[352104245,1738949442214,-759.11,0.00016438,2]
[352104246,1738949442223,-500.0,0.00016438,2]
[352104247,1738949442233,-500.0,0.00016438,2]
[352104248,1738949442246,-500.0,0.00016438,2]
[352104249,1738949442255,-854.71,0.00016438,2]
[352104250,1738949442265,-1215.41,0.00016438,2]
[352104251,1738949442275,-500.0,0.00016438,2]
[352104252,1738949442284,-176.18666754,0.00016438,2]
[352104253,1738949442294,-500.0,0.00016438,2]
[352104254,1738949442303,-500.0,0.00016438,2]
[352104256,1738949442313,-500.0,0.00016438,2]
[352104258,1738949442323,-500.0,0.00016438,2]
[352104260,1738949442333,-785.21,0.00016438,2]
[352104262,1738949442342,-500.0,0.00016438,2]
[352104264,1738949442351,-500.0,0.00016438,2]
[352104266,1738949442360,-500.0,0.00016438,2]
[352104268,1738949442369,-790.52,0.00016438,2]
[352104270,1738949442378,-500.0,0.00016438,2]
[352104272,1738949442387,-500.0,0.00016438,2]
[352104274,1738949442396,-500.0,0.00016438,2]
[352104276,1738949442405,-500.0,0.00016438,2]
[352104278,1738949442415,-500.0,0.00016438,2]
[352104280,1738949442424,-565.64,0.00016438,2]
[352104282,1738949442433,-500.0,0.00016438,2]
[352104284,1738949442442,-1424.01,0.00016438,2]
[352104285,1738949442453,-643.79,0.00016438,2]
[352104288,1738949442466,-500.0,0.00016438,2]
[352104291,1738949442476,-500.0,0.00016438,2]
[352104294,1738949442486,-500.0,0.00016438,2]
[352104297,1738949442495,-973.03,0.00016438,2]
[352104299,1738949442504,-500.0,0.00016438,2]
[352104302,1738949442514,-500.0,0.00016438,2]
[352104305,1738949442523,-2626.26,0.00016438,2]
[352104308,1738949442532,-500.0,0.00016438,2]
[352104312,1738949442541,-500.0,0.00016438,2]
[352104316,1738949442551,-500.0,0.00016438,2]
[352104318,1738949442560,-3323.09,0.00016438,2]
[352104321,1738949442569,-500.0,0.00016438,2]
[352104325,1738949442578,-358.64881549,0.00016438,2]
[352104328,1738949442587,-1357.78,0.00016438,2]
[352104331,1738949442596,-500.0,0.00016438,2]
[352104334,1738949442606,-1296.64,0.00016438,2]
[352104337,1738949442615,-4122.18,0.00016438,2]
[352104340,1738949442624,-2810.48,0.00016438,2]
[352104342,1738949442633,-500.0,0.00016438,2]
[352104345,1738949442643,-337.96790854,0.00016438,2]
[352104348,1738949442652,-888.82,0.00016438,2]
[352104351,1738949442661,-500.0,0.00016438,2]
[352104354,1738949442670,-500.0,0.00016438,2]
[352104357,1738949442680,-500.0,0.00016438,2]
[352104361,1738949442689,-500.0,0.00016438,2]
[352104364,1738949442698,-1154.68,0.00016438,2]
[352104366,1738949442709,-1241.5,0.00016438,2]
[352104368,1738949442719,-500.0,0.00016438,2]
[352104370,1738949442728,-500.0,0.00016438,2]
[352104372,1738949442738,-500.0,0.00016438,2]
[352104373,1738949442747,-728.97,0.00016438,2]
[352104374,1738949442757,-500.0,0.00016438,2]
[352104375,1738949442766,-1429.92,0.00016438,2]
[352104376,1738949442775,-1556.57,0.00016438,2]
[352104377,1738949442784,-500.0,0.00016438,2]
[352104378,1738949442794,-1984.34,0.00016438,2]
[352104379,1738949442803,-3292.49,0.00016438,2]
[352104380,1738949442812,-500.0,0.00016438,2]
[352104381,1738949442822,-525.64871366,0.00016438,2]
[352104382,1738949442831,-500.0,0.00016438,2]
[352104383,1738949442840,-1283.49,0.00016438,2]
[352104384,1738949442850,-500.0,0.00016438,2]
[352104385,1738949442859,-500.0,0.00016438,2]
[352104386,1738949442869,-500.0,0.00016438,2]
[352104387,1738949442879,-684.68,0.00016438,2]
[352104388,1738949442888,-1249.03,0.00016438,2]
[352104390,1738949442897,-500.0,0.00016438,2]
[352104392,1738949442906,-4283.8,0.00016438,2]
[352104394,1738949442915,-919.27,0.00016438,2]
[352104396,1738949442924,-500.0,0.00016438,2]
[352104398,1738949442934,-500.0,0.00016438,2]
[352104400,1738949442943,-1193.74,0.00016438,2]
[352104401,1738949442965,-500.0,0.00016438,2]
[352104403,1738949442975,-500.0,0.00016438,2]
[352104405,1738949442984,-500.0,0.00016438,2]
[352104407,1738949442993,-1229.47,0.00016438,2]